bitfinex/quotes_BTCUSD_20230405
["timestamp","ask_amount","ask_price","bid_price","bid_amount"]
[1680659108730,0.35892056,28595.0,28590.0,0.14652]
[1680659109175,0.35492056,28595.0,28589.0,0.14652]
[1680659109450,0.49681737,28595.0,28589.0,0.14852]
[1680659109675,0.49681737,28595.0,28590.0,0.0812]
[1680659109894,0.35492056,28595.0,28590.0,0.22772]
[1680659110337,0.35892056,28595.0,28590.0,0.22772]
[1680659111671,0.35892056,28595.0,28590.0,0.3111714]
[1680659113716,0.35892056,28595.0,28591.0,0.009184]
[1680659113923,0.35892056,28595.0,28590.0,0.3111714]
[1680659114789,0.35892056,28595.0,28591.0,0.008896]
[1680659115842,0.35892056,28595.0,28590.0,0.3111714]
[1680659115843,0.35492056,28595.0,28590.0,0.3111714]
[1680659116067,0.35471056,28593.0,28590.0,0.0834514]
[1680659116297,0.15210681,28595.0,28590.0,0.0834514]
[1680659116298,0.00015,28595.0,28592.0,0.1632]
[1680659116543,0.00051,28606.0,28594.0,0.171961]
[1680659116748,0.00051,28606.0,28600.0,0.0809]
[1680659116970,0.00051,28606.0,28601.0,0.1]
[1680659117237,0.02171,28607.0,28602.0,0.01748]
[1680659117460,0.0212,28607.0,28603.0,0.09621837]
[1680659117680,0.0212,28607.0,28603.0,0.19499837]
[1680659117892,0.0212,28607.0,28604.0,0.1]
[1680659118106,0.02383,28611.0,28604.0,0.1]
[1680659118325,0.02383,28611.0,28605.0,0.09621837]
[1680659118326,0.35471056,28610.0,28605.0,0.09621837]
[1680659118592,0.35507056,28610.0,28605.0,0.09621837]
[1680659118797,0.002,28606.0,28605.0,0.11369737]
[1680659119008,0.00051,28608.0,28605.0,0.026286]
[1680659119446,0.00036,28609.0,28606.0,0.0816]
[1680659119667,0.001,28610.0,28607.0,0.098778]
[1680659119905,0.02332,28611.0,28607.0,0.098778]
[1680659119906,0.02332,28611.0,28608.0,0.1]
[1680659120112,0.02332,28611.0,28608.0,0.24865037]
[1680659120113,0.37803056,28611.0,28608.0,0.24865037]
[1680659120345,0.37854056,28611.0,28608.0,0.152432]
[1680659120555,0.37854056,28611.0,28608.0,0.1]
[1680659120776,0.02332,28611.0,28610.0,0.0816]
[1680659120992,0.02332,28611.0,28610.0,0.099076]
[1680659122766,0.02332,28611.0,28610.0,0.199076]
[1680659122986,0.02532,28611.0,28610.0,0.355536]
[1680659123213,0.02332,28611.0,28610.0,0.345536]
[1680659123632,0.02532,28611.0,28610.0,0.355536]
[1680659125255,0.02332,28611.0,28610.0,0.345536]
[1680659125481,0.02332,28611.0,28610.0,0.427136]
[1680659125916,0.02332,28611.0,28610.0,0.455136]
[1680659126126,0.02332,28611.0,28610.0,0.427136]
[1680659126351,0.02332,28611.0,28610.0,0.455136]
[1680659126993,0.02332,28611.0,28610.0,0.373536]
[1680659127213,0.02332,28611.0,28610.0,0.345536]
[1680659128600,0.02332,28611.0,28610.0,0.373536]
[1680659129034,0.02332,28611.0,28610.0,0.273536]
[1680659129254,0.02332,28611.0,28610.0,0.18536]
[1680659129708,0.02332,28611.0,28610.0,0.0389]
[1680659129918,0.02332,28611.0,28610.0,0.202836]
[1680659130139,0.02332,28611.0,28610.0,0.15736]
[1680659130372,0.02332,28611.0,28610.0,0.17236]
[1680659131253,0.02332,28611.0,28610.0,0.0259]
[1680659131748,0.02332,28611.0,28610.0,0.0109]
[1680659131969,0.02332,28611.0,28610.0,0.0389]
[1680659132209,0.02332,28611.0,28610.0,0.15736]
[1680659132852,0.02332,28611.0,28610.0,0.17236]
[1680659133742,0.02332,28611.0,28610.0,0.0259]
[1680659134189,0.02332,28611.0,28610.0,0.17236]
[1680659134620,0.02332,28611.0,28610.0,0.19336]
[1680659135317,0.02332,28611.0,28610.0,0.0109]
[1680659135525,0.02110591,28611.0,28610.0,0.0259]
[1680659135722,0.02110591,28611.0,28610.0,0.0109]
[1680659135947,0.02110591,28611.0,28610.0,0.0319]
[1680659136164,0.02110591,28611.0,28610.0,0.0109]
[1680659136377,0.02110591,28611.0,28610.0,0.0259]
[1680659137466,0.02110591,28611.0,28610.0,0.0109]
[1680659137686,0.02110591,28611.0,28610.0,0.0319]
[1680659137925,0.02110591,28611.0,28610.0,0.0109]
[1680659138592,0.02110591,28611.0,28610.0,0.0259]
[1680659138803,0.02110591,28611.0,28610.0,0.0109]
[1680659139015,0.02110591,28611.0,28610.0,0.0319]
[1680659139274,0.02110591,28611.0,28610.0,0.0109]
[1680659139494,0.02110591,28611.0,28610.0,0.0259]
[1680659139926,0.02110591,28611.0,28610.0,0.035354]
[1680659140152,0.02110591,28611.0,28610.0,0.181814]
[1680659140384,0.02110591,28611.0,28610.0,0.0109]
[1680659140663,0.39661647,28611.0,28610.0,0.0109]
[1680659140877,0.44480447,28611.0,28610.0,0.021]
[1680659141080,0.44480447,28611.0,28605.0,0.00018]
[1680659141081,0.74480447,28611.0,28605.0,0.00018]
[1680659141308,0.74480447,28611.0,28604.0,0.14646]
[1680659141309,0.79660737,28610.0,28604.0,0.14646]
[1680659141527,0.0207,28608.0,28604.0,0.017479]
[1680659141755,0.51730737,28608.0,28605.0,0.00921]
[1680659141966,0.37541056,28608.0,28605.0,0.00921]
[1680659142402,0.37541056,28608.0,28605.0,0.15567]
[1680659144151,0.37541056,28608.0,28605.0,0.17067]
[1680659144415,0.37541056,28608.0,28605.0,0.15567]
[1680659144636,0.37541056,28608.0,28605.0,0.17067]
[1680659144853,0.37541056,28608.0,28605.0,0.15567]
[1680659145071,0.37541056,28608.0,28605.0,0.17067]
[1680659145793,0.37541056,28608.0,28605.0,0.02421]
[1680659146985,0.37551056,28608.0,28607.0,0.008807]
[1680659148147,0.37551056,28608.0,28607.0,0.009807]
[1680659148362,0.37551056,28608.0,28605.0,0.14646]
[1680659148587,0.35971056,28608.0,28607.0,0.008982]
[1680659148807,0.38041056,28608.0,28607.0,0.008982]
[1680659149688,0.005,28608.0,28607.0,0.02646]
[1680659150149,0.005,28608.0,28607.0,0.022382]
[1680659150383,0.005,28608.0,28607.0,0.022241]
[1680659150624,0.005,28608.0,28607.0,0.0134]
[1680659150877,0.0207,28609.0,28607.0,0.0134]
[1680659151102,0.39291056,28609.0,28607.0,0.0134]
[1680659151325,0.39291056,28609.0,28603.0,0.01085337]
[1680659151561,0.39291056,28609.0,28607.0,0.015]
[1680659151562,0.53531737,28609.0,28607.0,0.015]
[1680659151799,0.39342056,28609.0,28605.0,0.017479]
[1680659152028,0.39342056,28609.0,28607.0,0.008]
[1680659152254,0.03871,28609.0,28604.0,0.14646]
[1680659152483,0.03871,28609.0,28607.0,0.017477]
[1680659152734,0.02110591,28611.0,28607.0,0.052433]
[1680659152967,0.02110591,28611.0,28608.0,0.14646]
[1680659153192,0.02110591,28611.0,28609.0,0.1]
[1680659153419,0.02161591,28611.0,28609.0,0.1]
[1680659153646,0.02161591,28611.0,28609.0,0.117476]
[1680659153888,0.02161591,28611.0,28609.0,0.1]
[1680659154110,0.02161591,28611.0,28608.0,0.103337]
[1680659154346,0.02110591,28611.0,28608.0,0.103337]
[1680659154839,0.02610591,28611.0,28608.0,0.103337]
[1680659155068,0.02146591,28611.0,28608.0,0.0072]
[1680659155300,0.02110591,28611.0,28608.0,0.0082]
[1680659155521,0.02110591,28611.0,28608.0,0.0072]
[1680659155742,0.02161591,28611.0,28608.0,0.0352]
[1680659157111,0.02161591,28611.0,28608.0,0.0072]
[1680659157332,0.02161591,28611.0,28608.0,0.0082]
[1680659157544,0.02161591,28611.0,28608.0,0.0072]
[1680659157761,0.02161591,28611.0,28608.0,0.1282]
[1680659157981,0.02161591,28611.0,28608.0,0.124677]
[1680659158195,0.02161591,28611.0,28608.0,0.204337]
[1680659158410,0.02161591,28611.0,28608.0,0.203337]
[1680659158626,0.02134591,28611.0,28608.0,0.2081284]
[1680659158845,0.02161591,28611.0,28608.0,0.0906514]
[1680659159069,0.02110591,28611.0,28608.0,0.08586]
[1680659159719,0.02110591,28611.0,28608.0,0.1693114]
[1680659159932,0.02110591,28611.0,28608.0,0.2903114]
[1680659160143,0.02110591,28611.0,28608.0,0.2693114]
[1680659160373,0.02110591,28611.0,28609.0,0.1]
[1680659160587,0.02110591,28611.0,28610.0,0.12536217]
[1680659161676,0.02110591,28611.0,28610.0,0.21699186]
[1680659163229,0.02110591,28611.0,28610.0,0.13336217]
[1680659166816,0.42496206,28611.0,28610.0,0.21703637]
[1680659167039,0.42547206,28611.0,28610.0,0.008]
[1680659167257,0.47456906,28611.0,28610.0,0.008]
[1680659167483,0.41482647,28611.0,28610.0,0.008]
[1680659168159,0.46482547,28611.0,28610.0,0.0916742]
[1680659168376,0.41482647,28611.0,28610.0,0.008]
[1680659169036,0.41482647,28611.0,28609.0,0.0736742]
[1680659169255,0.39311056,28610.0,28609.0,0.0736742]
[1680659170585,0.39311056,28610.0,28608.0,0.00018]
[1680659170824,0.0385,28609.0,28607.0,0.29284015]
[1680659171049,0.39101056,28609.0,28608.0,0.009599]
[1680659171515,0.39101056,28609.0,28608.0,0.023599]
[1680659171731,0.39101056,28609.0,28608.0,0.102259]
[1680659171949,0.39101056,28609.0,28608.0,0.22780117]
[1680659172173,0.39101056,28609.0,28608.0,0.28721398]
[1680659172400,0.00051,28610.0,28608.0,0.27321398]
[1680659172628,0.02110591,28611.0,28609.0,0.16735951]
[1680659172861,0.02110591,28611.0,28610.0,0.26745502]
[1680659173300,0.02110591,28611.0,28610.0,0.37638915]
[1680659173515,0.02210591,28611.0,28610.0,0.20893413]
[1680659173956,0.02110591,28611.0,28610.0,0.20893413]
[1680659174079,0.02110591,28611.0,28610.0,0.20993413]
[1680659174927,0.02110591,28611.0,28610.0,0.20758224]
[1680659176180,0.02110591,28611.0,28610.0,0.001]
[1680659176908,0.02110591,28611.0,28610.0,0.018476]
[1680659177748,0.02110591,28611.0,28610.0,0.001]
[1680659178611,0.02110591,28611.0,28610.0,0.018476]
[1680659179446,0.02110591,28611.0,28610.0,0.001]
[1680659180133,0.41211647,28611.0,28610.0,0.1684061]
[1680659180396,0.41262647,28611.0,28610.0,0.08470855]
[1680659180822,0.41262647,28611.0,28610.0,0.21026996]
[1680659181275,0.41262647,28611.0,28610.0,0.08470855]
[1680659182588,0.41262647,28611.0,28610.0,0.08370855]
[1680659182841,0.41862647,28611.0,28610.0,0.08370855]
[1680659186179,0.41262647,28611.0,28610.0,0.08370855]
[1680659186368,0.41262647,28611.0,28610.0,0.08470855]
[1680659187561,0.41262647,28611.0,28610.0,0.001]
[1680659188006,0.41262647,28611.0,28610.0,0.08470855]
[1680659188875,0.41262647,28611.0,28610.0,0.09266955]
[1680659189534,0.41862647,28611.0,28610.0,0.008961]
[1680659189770,0.41262647,28611.0,28610.0,0.13452241]
[1680659189967,0.41262647,28611.0,28610.0,0.13552241]
[1680659190857,0.41262647,28611.0,28610.0,0.13452241]
[1680659191334,0.40022647,28611.0,28610.0,0.13452241]
[1680659192256,0.41222647,28611.0,28610.0,0.13652241]
[1680659193764,0.41222647,28611.0,28610.0,0.32140451]
[1680659194202,0.05751591,28611.0,28610.0,0.32140451]
[1680659194435,0.03310591,28611.0,28610.0,0.32140451]
[1680659194854,0.03310591,28611.0,28610.0,0.1958431]
[1680659195534,0.02110591,28611.0,28610.0,0.1938431]
[1680659196198,0.02210591,28611.0,28610.0,0.2078431]
[1680659197097,0.02203559,28611.0,28610.0,0.2078431]
[1680659197987,0.02203559,28611.0,28610.0,0.41710606]
[1680659198471,0.02203559,28611.0,28610.0,0.24969996]
[1680659198694,0.02203559,28611.0,28610.0,0.41722661]
[1680659199356,0.02103559,28611.0,28610.0,0.40322661]
[1680659199578,0.02203559,28611.0,28610.0,0.41022661]
[1680659202265,0.02203559,28611.0,28610.0,0.41015961]
[1680659202926,0.02203559,28611.0,28610.0,0.24263296]
[1680659203819,0.02203559,28611.0,28610.0,0.03337]
[1680659204451,0.02203559,28611.0,28610.0,0.24259116]
[1680659206844,0.02203559,28611.0,28610.0,0.03337]
[1680659207091,0.02203559,28611.0,28610.0,0.22500224]
[1680659207738,0.37674615,28611.0,28610.0,0.22500224]
[1680659207957,0.37674615,28611.0,28610.0,0.38356226]
[1680659208412,0.37674615,28611.0,28610.0,0.21628824]
[1680659209755,0.40054615,28611.0,28610.0,0.21628824]
[1680659209966,0.40069615,28611.0,28610.0,0.21614748]
[1680659210172,0.40105615,28611.0,28610.0,0.21602748]
[1680659210387,0.40105615,28611.0,28610.0,0.38323062]
[1680659210817,0.40105615,28611.0,28610.0,0.21602748]
[1680659211255,0.38115615,28611.0,28610.0,0.20910824]
[1680659211685,0.38115615,28611.0,28610.0,0.37645171]
[1680659211910,0.38715615,28611.0,28610.0,0.37645171]
[1680659212155,0.38115615,28611.0,28610.0,0.37645171]
[1680659212809,0.38115615,28611.0,28610.0,0.16834347]
[1680659213046,0.43228815,28611.0,28610.0,0.08470136]
[1680659213537,0.38115615,28611.0,28610.0,0.08468869]
[1680659213970,0.38115615,28611.0,28610.0,0.08368869]
[1680659214403,0.39215615,28611.0,28610.0,0.08568869]
[1680659216166,0.39215615,28611.0,28610.0,0.12754083]
[1680659217507,0.39215615,28611.0,28610.0,0.21124299]
[1680659218594,0.39215615,28611.0,28609.0,0.16752347]
[1680659218822,0.35961056,28610.0,28609.0,0.16734347]
[1680659219889,0.37261056,28610.0,28609.0,0.16834347]
[1680659221005,0.37261056,28610.0,28609.0,0.17742647]
[1680659221914,0.37261056,28610.0,28609.0,0.16834347]
[1680659222147,0.42082256,28610.0,28609.0,0.001]
[1680659222376,0.41771556,28610.0,28609.0,0.001]
[1680659222588,0.37261056,28610.0,28609.0,0.001]
[1680659222806,0.37261056,28610.0,28609.0,0.16834347]
[1680659223245,0.35961056,28610.0,28608.0,0.37663171]
[1680659223431,0.36771056,28610.0,28609.0,0.16934347]
[1680659223661,0.37261056,28610.0,28609.0,0.16934347]
[1680659224066,0.42369756,28610.0,28609.0,0.002]
[1680659224494,0.37261056,28610.0,28609.0,0.002]
[1680659225796,0.37312056,28610.0,28607.0,0.22639084]
[1680659226009,0.36822056,28610.0,28608.0,0.017477]
[1680659226227,0.0049,28609.0,28608.0,0.017477]
[1680659226451,0.35961056,28609.0,28608.0,0.026894]
[1680659226671,0.35961056,28609.0,28608.0,0.017477]
[1680659227114,0.35961056,28609.0,28608.0,0.026227]
[1680659227335,0.35961056,28609.0,28607.0,0.07966]
[1680659227553,0.00651,28610.0,28607.0,0.07966]
[1680659227554,0.35961056,28608.0,28607.0,0.07966]
[1680659227846,0.35961056,28608.0,28606.0,0.07884]
[1680659228062,0.0049,28607.0,28604.0,0.00018]
[1680659228274,0.0049,28605.0,28603.0,0.26802592]
[1680659228503,0.0049,28605.0,28604.0,0.008587]
[1680659228504,0.35471056,28605.0,28604.0,0.008587]
[1680659228723,0.35471056,28605.0,28604.0,0.008767]
[1680659228724,0.35961056,28605.0,28604.0,0.008767]
[1680659228934,0.35961056,28605.0,28604.0,0.00018]
[1680659229368,0.35961056,28605.0,28604.0,0.26802592]
[1680659229573,0.35961056,28605.0,28604.0,0.25964692]
[1680659229786,0.36061056,28605.0,28604.0,0.27264692]
[1680659230219,0.36061056,28605.0,28604.0,0.022281]
[1680659230440,0.36061056,28605.0,28604.0,0.01318]
[1680659230804,0.36061056,28605.0,28604.0,0.03066]
[1680659231020,0.36061056,28605.0,28604.0,0.01318]
[1680659231226,0.35721056,28605.0,28604.0,0.01318]
[1680659232055,0.35721056,28605.0,28604.0,0.022328]
[1680659232386,0.35721056,28605.0,28604.0,0.022159]
[1680659232594,0.35721056,28605.0,28604.0,0.01318]
[1680659232855,0.35721056,28605.0,28604.0,0.022248]
[1680659233073,0.35721056,28605.0,28604.0,0.01318]
[1680659233508,0.35721056,28605.0,28604.0,0.013]
[1680659233731,0.35721056,28605.0,28604.0,0.22193397]
[1680659233943,0.35721056,28605.0,28604.0,0.22211397]
[1680659234190,0.35721056,28605.0,28604.0,0.18016603]
[1680659234418,0.35772056,28605.0,28604.0,0.30430603]
[1680659234635,0.35772056,28605.0,28604.0,0.51324]
[1680659234866,0.69349262,28605.0,28604.0,0.26254567]
[1680659235091,0.75229562,28605.0,28604.0,0.1372]
[1680659235309,1.11999562,28605.0,28604.0,0.1372]
[1680659235752,1.11899562,28605.0,28604.0,0.1242]
[1680659235985,1.13199562,28605.0,28604.0,0.1252]
[1680659236629,1.11899562,28605.0,28604.0,0.1242]
[1680659236853,0.01188774,28604.0,28603.0,6e-05]
[1680659237078,0.3677,28603.0,28600.0,0.00018]
[1680659237366,0.77276656,28601.0,28600.0,0.00018]
[1680659237577,0.77276656,28601.0,28597.0,0.00018]
[1680659237578,0.046814,28599.0,28597.0,0.00018]
[1680659237807,0.41305556,28598.0,28597.0,0.00018]
[1680659238043,0.66471056,28598.0,28596.0,0.00018]
[1680659238240,0.350277,28597.0,28596.0,6e-05]
[1680659238359,0.350277,28597.0,28595.0,0.16710603]
[1680659238360,0.050007,28596.0,28595.0,0.16710603]
[1680659238583,0.35621056,28596.0,28594.0,0.16728603]
[1680659238800,0.30051,28597.0,28594.0,0.16710603]
[1680659238801,0.65621056,28595.0,28594.0,0.16710603]
[1680659239033,0.35621056,28595.0,28594.0,0.16728603]
[1680659239238,0.65621056,28595.0,28594.0,0.16728603]
[1680659239463,0.70480056,28595.0,28594.0,0.00018]
[1680659239693,0.72199056,28595.0,28594.0,0.002]
[1680659240363,0.72199056,28595.0,28592.0,0.0211]
[1680659240364,0.70625556,28595.0,28592.0,0.02128]
[1680659240588,0.0015,28593.0,28592.0,0.02122]
[1680659240824,0.0015,28593.0,28592.0,0.02128]
[1680659242718,0.37221056,28593.0,28592.0,0.02328]
[1680659242939,0.42083156,28593.0,28592.0,0.02328]
[1680659243176,0.42083156,28593.0,28592.0,0.0231]
[1680659243409,0.42017356,28593.0,28592.0,0.0231]
[1680659243611,0.37221056,28593.0,28592.0,0.0231]
[1680659243815,0.0175,28593.0,28592.0,0.032592]
[1680659244032,0.016,28593.0,28592.0,0.45165054]
[1680659244257,0.016,28593.0,28592.0,0.46090554]
[1680659244462,0.016,28593.0,28592.0,0.45183054]
[1680659244684,0.016,28593.0,28592.0,0.46111154]
[1680659244895,0.016,28593.0,28592.0,0.45183054]
[1680659245524,0.011,28593.0,28592.0,0.45165054]
[1680659246748,0.36721056,28593.0,28592.0,0.45165054]
[1680659246980,0.36721056,28593.0,28592.0,0.02328]
[1680659247164,0.36721056,28593.0,28592.0,0.0231]
[1680659249296,0.36772056,28593.0,28592.0,0.0231]
[1680659249724,0.36721056,28593.0,28592.0,0.37596651]
[1680659249931,0.36721056,28593.0,28592.0,0.37614651]
[1680659250358,0.0125,28593.0,28592.0,0.37614651]
[1680659250570,0.0125,28593.0,28592.0,0.38464151]
[1680659251023,0.011,28593.0,28592.0,0.049262]
[1680659251437,0.011,28593.0,28592.0,0.61008518]
[1680659251682,0.011,28593.0,28592.0,0.13260451]
[1680659251906,0.011,28593.0,28592.0,0.58612033]
[1680659252147,0.011,28593.0,28592.0,0.23260451]
[1680659252371,0.011,28593.0,28592.0,0.23278451]
[1680659252589,0.70445982,28600.0,28592.0,0.35567052]
[1680659252813,0.00870122,28606.0,28592.0,0.35567052]
[1680659252814,0.35471056,28599.0,28593.0,0.27956088]
[1680659253028,0.35471056,28599.0,28594.0,0.13579851]
[1680659253249,0.35471056,28599.0,28595.0,0.09621837]
[1680659253522,0.35471056,28599.0,28596.0,0.017484]
[1680659253738,0.35571056,28599.0,28595.0,0.017665]
[1680659253956,0.35571056,28599.0,28595.0,0.117665]
[1680659254177,0.35471056,28599.0,28595.0,0.20100751]
[1680659254817,0.35571056,28599.0,28595.0,0.22100751]
[1680659255465,0.35571056,28599.0,28595.0,0.12100751]
[1680659255686,0.35571056,28599.0,28596.0,0.42769224]
[1680659255893,0.35571056,28599.0,28596.0,0.42787224]
[1680659256315,0.35471056,28599.0,28596.0,0.42787224]
[1680659256529,0.001,28599.0,28596.0,0.44535624]
[1680659256747,0.001,28599.0,28596.0,0.42787224]
[1680659257180,0.38205743,28601.0,28596.0,0.44535624]
[1680659257401,0.001,28599.0,28596.0,0.43487224]
[1680659257612,0.35471056,28599.0,28596.0,0.42787224]
[1680659257825,0.35571056,28599.0,28598.0,0.008612]
[1680659258052,0.35571056,28599.0,28597.0,0.23235348]
[1680659258735,0.35571056,28599.0,28598.0,0.009408]
[1680659259157,0.35471056,28599.0,28598.0,0.009408]
[1680659260234,0.36071056,28599.0,28598.0,0.009408]
[1680659260892,0.35471056,28599.0,28598.0,0.009408]
[1680659261110,0.35471056,28599.0,28598.0,0.3181715]
[1680659261342,0.35471056,28599.0,28598.0,0.04058]
[1680659261343,0.36071056,28599.0,28598.0,0.04058]
[1680659261556,0.79431652,28599.0,28598.0,0.0404]
[1680659261774,0.79431652,28599.0,28594.0,0.00018]
[1680659261775,1.10930523,28599.0,28594.0,0.00018]
[1680659261997,0.70618756,28598.0,28593.0,0.23884252]
[1680659262213,0.047628,28597.0,28593.0,0.23884252]
[1680659262432,0.35471056,28596.0,28593.0,0.23884252]
[1680659262872,0.35471056,28596.0,28594.0,0.002]
[1680659263085,0.4344223,28596.0,28592.0,0.43981664]
[1680659263315,0.84068313,28596.0,28593.0,0.001]
[1680659263531,0.76097139,28596.0,28592.0,0.43999664]
[1680659263782,0.77297139,28596.0,28593.0,0.001]
[1680659266416,0.77297139,28596.0,28593.0,0.25702702]
[1680659266622,0.77297139,28596.0,28593.0,0.25720702]
[1680659267923,0.36671056,28596.0,28593.0,0.25720702]
[1680659268559,0.36671056,28596.0,28594.0,0.39950522]
[1680659268773,0.36671056,28596.0,28594.0,0.41717122]
[1680659269853,0.3546435,28596.0,28594.0,0.41717122]
[1680659270498,0.3706435,28596.0,28594.0,0.41917122]
[1680659271464,0.3706435,28596.0,28595.0,0.009026]
[1680659271684,0.3706435,28596.0,28594.0,0.41917122]
[1680659272115,0.3706435,28596.0,28595.0,0.19891005]
[1680659272333,0.3706435,28596.0,28594.0,0.019666]
[1680659272514,0.3546435,28596.0,28594.0,0.017486]
[1680659273126,0.3706435,28596.0,28595.0,0.002]
[1680659273335,0.3546435,28596.0,28594.0,0.2012045]
[1680659273538,0.3706435,28596.0,28594.0,0.2033845]
[1680659273748,0.3706435,28596.0,28595.0,0.36513813]
[1680659273959,0.00051,28597.0,28595.0,0.47475464]
[1680659274189,0.00051,28597.0,28595.0,0.52127464]
[1680659274190,0.016,28596.0,28595.0,0.52127464]
[1680659274418,0.016,28596.0,28595.0,0.52145464]
[1680659274641,0.016,28596.0,28595.0,0.51627464]
[1680659274863,0.016,28596.0,28595.0,0.13865151]
[1680659275122,0.016,28596.0,28595.0,0.15613651]
[1680659275321,0.43216354,28597.0,28595.0,0.15413651]
[1680659275468,0.43216354,28597.0,28595.0,0.13665151]
[1680659275690,0.43216354,28597.0,28595.0,0.12804251]
[1680659275891,0.00051,28598.0,28596.0,0.008989]
[1680659276069,0.33145111,28600.0,28596.0,0.33877322]
[1680659276283,0.68667167,28600.0,28596.0,0.32978422]
[1680659276717,0.005,28597.0,28596.0,0.32978422]
[1680659276930,0.37325093,28599.0,28596.0,0.33880822]
[1680659277140,0.37325093,28599.0,28596.0,0.33078422]
[1680659277356,0.72796149,28599.0,28596.0,0.33078422]
[1680659277748,0.72310379,28598.0,28597.0,0.0466]
[1680659277961,0.72900132,28598.0,28597.0,0.0466]
[1680659278178,0.35522056,28598.0,28597.0,0.0466]
[1680659278386,0.76747015,28598.0,28597.0,0.0466]
[1680659278619,0.36372056,28598.0,28597.0,0.0466]
[1680659278827,0.7916482,28598.0,28597.0,0.0466]
[1680659279940,0.8548332,28598.0,28597.0,0.0486]
[1680659280255,0.8066482,28598.0,28597.0,0.0486]
[1680659280474,0.8066482,28598.0,28597.0,0.13194251]
[1680659280678,0.8066482,28598.0,28597.0,0.08534251]
[1680659280885,0.8066482,28598.0,28597.0,0.002]
[1680659281309,0.7916482,28598.0,28596.0,0.20840852]
[1680659281516,0.8066482,28598.0,28597.0,0.08534251]
[1680659281726,0.7916482,28598.0,28597.0,0.08334251]
[1680659281928,0.7831482,28598.0,28597.0,0.08534251]
[1680659282152,0.7981482,28598.0,28597.0,0.08534251]
[1680659282437,0.7831482,28598.0,28597.0,0.08334251]
[1680659282558,0.7981482,28598.0,28597.0,0.08534251]
[1680659282769,0.81815656,28598.0,28596.0,0.39148576]
[1680659282994,0.83315656,28598.0,28597.0,0.08534251]
[1680659283187,0.82665656,28598.0,28597.0,0.08334251]
[1680659283626,0.87151656,28598.0,28597.0,0.08334251]
[1680659283841,0.82665656,28598.0,28596.0,0.20840852]
[1680659284058,0.0085,28597.0,28596.0,0.20855156]
[1680659284260,0.36372056,28597.0,28596.0,0.20855156]
[1680659284707,0.36372056,28597.0,28596.0,0.208552]
[1680659284918,0.36372056,28597.0,28596.0,0.12506601]
[1680659285334,0.36372056,28597.0,28596.0,0.48170312]
[1680659285335,0.37022056,28597.0,28596.0,0.48170312]
[1680659285986,0.35522056,28597.0,28596.0,0.64680915]
[1680659286223,0.37022056,28597.0,28596.0,0.52374314]
[1680659286859,0.37022056,28597.0,28596.0,0.48186079]
[1680659287086,0.37022056,28597.0,28596.0,0.64896682]
[1680659287298,0.35522056,28597.0,28596.0,0.64696682]
[1680659287501,0.37022056,28597.0,28596.0,0.64895977]
[1680659287708,0.37022056,28597.0,28596.0,0.4818553]
[1680659287914,0.35522056,28597.0,28596.0,0.53922714]
[1680659288132,0.37022056,28597.0,28596.0,0.55007814]
[1680659288337,0.01551,28597.0,28596.0,0.74152811]
[1680659288545,0.015,28597.0,28596.0,0.74152811]
[1680659288753,0.30051,28599.0,28596.0,0.73952811]
[1680659288955,0.69056104,28599.0,28598.0,0.08346661]
[1680659289380,0.71994258,28599.0,28598.0,0.08346661]
[1680659289599,0.30051,28599.0,28598.0,0.08346661]
[1680659289811,0.00901,28599.0,28598.0,0.08346661]
[1680659290424,0.30901,28599.0,28598.0,0.08346661]
[1680659290909,0.32401,28599.0,28598.0,0.08534758]
[1680659291133,0.30901,28599.0,28598.0,0.15424758]
[1680659291343,0.32401,28599.0,28598.0,0.15624758]
[1680659293327,0.67872056,28599.0,28598.0,0.15624758]
[1680659294367,1.04655277,28599.0,28598.0,0.15624758]
[1680659294566,1.09368377,28599.0,28598.0,0.15624758]
[1680659294970,1.09368377,28599.0,28598.0,0.08534758]
[1680659295660,1.12816084,28599.0,28598.0,0.08534758]
[1680659295874,1.12816084,28599.0,28598.0,0.15794758]
[1680659299541,1.08102984,28599.0,28598.0,0.08534758]
[1680659299758,0.67022056,28599.0,28598.0,0.53525605]
[1680659299925,0.67022056,28599.0,28598.0,0.45190847]
[1680659300349,0.67022056,28599.0,28598.0,0.6190145]
[1680659300952,0.67022056,28599.0,28598.0,0.12719991]
[1680659301503,1.09341292,28599.0,28598.0,0.12719991]
[1680659301699,1.10191292,28599.0,28598.0,0.12719991]
[1680659302134,1.10191292,28599.0,28598.0,0.21078424]
[1680659302357,1.10191292,28599.0,28598.0,0.12719991]
[1680659305716,1.10191292,28599.0,28598.0,0.29430594]
[1680659305933,1.10191292,28599.0,28598.0,0.12719991]
[1680659306366,1.10191292,28599.0,28598.0,0.29430594]
[1680659306992,1.13673596,28599.0,28598.0,0.29430594]
[1680659307661,0.7135436,28599.0,28598.0,0.16910603]
[1680659307860,0.7135436,28599.0,28598.0,0.29467502]
[1680659307978,0.7135436,28599.0,28598.0,0.2946778]
[1680659308198,0.7135436,28599.0,28598.0,0.16910603]
[1680659308841,0.7135436,28599.0,28598.0,0.29471745]
[1680659309526,0.7135436,28599.0,28598.0,0.16910603]
[1680659309987,0.7135436,28599.0,28598.0,0.29466567]
[1680659310247,0.7135436,28599.0,28598.0,0.29465725]
[1680659311610,1.09268606,28599.0,28598.0,0.29465725]
[1680659312152,1.09268606,28599.0,28598.0,0.16910603]
[1680659313818,1.33240902,28599.0,28598.0,0.16910603]
[1680659314090,1.24024221,28599.0,28598.0,0.141]
[1680659314359,1.24024221,28599.0,28598.0,0.002]
[1680659314625,1.24024221,28599.0,28596.0,0.0837137]
[1680659314626,1.22524221,28599.0,28596.0,0.0837137]
[1680659314893,0.77074856,28597.0,28595.0,0.0837137]
[1680659315380,0.349985,28596.0,28595.0,0.0837137]
[1680659315653,0.349985,28596.0,28594.0,0.12574487]
[1680659315654,0.71319556,28596.0,28594.0,0.0838937]
[1680659315904,0.40338756,28595.0,28594.0,0.0837137]
[1680659316168,0.41188756,28595.0,28594.0,0.0837137]
[1680659316991,0.41239756,28595.0,28593.0,0.19383157]
[1680659317253,0.36372056,28595.0,28593.0,0.19371157]
[1680659318047,0.36372056,28595.0,28593.0,0.02660554]
[1680659318323,0.77804312,28595.0,28593.0,0.02660554]
[1680659318545,0.77743837,28595.0,28593.0,0.02660554]
[1680659318809,0.048652,28594.0,28593.0,0.02660554]
[1680659319137,0.77956256,28594.0,28592.0,0.02128]
[1680659319385,0.49988356,28593.0,28592.0,0.0211]
[1680659319625,0.80838356,28593.0,28592.0,0.0211]